bitfinex/quotes_BTCUSD_20241010
["timestamp","ask_amount","ask_price","bid_price","bid_amount"]
[1728572015602,0.33418143,60628.0,60626.0,0.001]
[1728572015825,0.164943,60627.0,60626.0,0.001]
[1728572016046,0.001,60628.0,60626.0,0.001]
[1728572016298,0.164943,60627.0,60626.0,0.007]
[1728572016519,0.001,60628.0,60626.0,0.007]
[1728572016740,0.164943,60627.0,60626.0,0.007]
[1728572016959,0.001,60628.0,60626.0,0.007]
[1728572017182,0.16594,60628.0,60626.0,0.007]
[1728572017397,0.001,60628.0,60626.0,0.007]
[1728572017643,0.164943,60627.0,60626.0,0.007]
[1728572017874,0.00494338,60628.0,60626.0,0.007]
[1728572018096,0.164943,60627.0,60626.0,0.007]
[1728572018540,0.164943,60627.0,60626.0,0.001]
[1728572018757,0.165943,60627.0,60626.0,0.008]
[1728572018976,0.165943,60627.0,60626.0,0.007]
[1728572018977,0.001,60627.0,60626.0,0.007]
[1728572019218,0.001,60627.0,60626.0,0.33278264]
[1728572019456,0.002,60627.0,60626.0,0.34448806]
[1728572019918,0.002,60627.0,60626.0,0.60748806]
[1728572020569,0.002,60627.0,60626.0,0.79014201]
[1728572020785,0.002,60627.0,60626.0,0.88911166]
[1728572021487,0.002,60627.0,60626.0,0.79014201]
[1728572022138,0.002,60627.0,60626.0,0.79177801]
[1728572022598,0.002,60627.0,60626.0,0.89180428]
[1728572022866,0.002,60627.0,60626.0,0.99180428]
[1728572023111,0.000818,60633.0,60632.0,0.243229]
[1728572023346,0.000818,60633.0,60632.0,0.77477492]
[1728572023592,0.000818,60633.0,60632.0,0.90903682]
[1728572024039,0.000818,60633.0,60632.0,0.78546808]
[1728572024716,0.000818,60633.0,60632.0,0.90899179]
[1728572025388,0.001818,60633.0,60632.0,0.91799179]
[1728572025602,0.001818,60633.0,60632.0,0.89325707]
[1728572025845,0.000818,60633.0,60632.0,0.88425707]
[1728572026309,0.001818,60633.0,60632.0,0.89325707]
[1728572026543,0.001818,60633.0,60632.0,0.4237598]
[1728572026758,0.001818,60633.0,60632.0,0.48714809]
[1728572027643,0.001818,60633.0,60632.0,0.4377598]
[1728572028550,0.001818,60633.0,60632.0,0.43670318]
[1728572029299,0.001818,60633.0,60632.0,0.4377598]
[1728572029516,0.00155368,60633.0,60632.0,0.4377598]
[1728572030643,0.00155368,60633.0,60632.0,0.62581413]
[1728572031089,0.00065368,60633.0,60632.0,0.67520242]
[1728572031302,0.00065368,60633.0,60632.0,0.67518829]
[1728572031752,0.00055368,60633.0,60632.0,0.67718829]
[1728572031970,0.00057168,60643.0,60642.0,0.164902]
[1728572032209,0.00057168,60643.0,60642.0,0.32573964]
[1728572032210,0.00047168,60643.0,60642.0,0.32573964]
[1728572032458,0.00047168,60643.0,60642.0,0.17044127]
[1728572032712,0.00047168,60643.0,60642.0,0.00960363]
[1728572032713,0.36056582,60643.0,60642.0,0.00960363]
[1728572032928,0.35646839,60643.0,60642.0,0.00960363]
[1728572033153,0.35646839,60643.0,60637.0,0.164913]
[1728572033154,0.164902,60642.0,60637.0,0.164913]
[1728572033391,0.19199771,60643.0,60642.0,0.009]
[1728572033392,0.35769671,60643.0,60642.0,0.009]
[1728572033627,0.62379671,60643.0,60642.0,0.02]
[1728572033862,0.43534238,60643.0,60642.0,0.02]
[1728572034353,0.43524238,60643.0,60642.0,0.02]
[1728572034569,0.43464238,60643.0,60642.0,0.02]
[1728572034784,0.43444238,60643.0,60642.0,0.02]
[1728572034995,0.43334238,60643.0,60642.0,0.011]
[1728572035220,0.43314238,60643.0,60642.0,0.011]
[1728572035439,0.43304238,60643.0,60642.0,0.011]
[1728572035929,0.00274338,60643.0,60642.0,0.011]
[1728572036366,0.00374338,60643.0,60642.0,0.03058684]
[1728572037044,0.00374338,60643.0,60642.0,0.19548884]
[1728572037268,0.16864238,60643.0,60642.0,0.03058684]
[1728572037721,0.17193981,60643.0,60642.0,0.03058684]
[1728572037983,0.17193981,60643.0,60642.0,0.021]
[1728572038713,0.63229414,60643.0,60642.0,0.021]
[1728572038928,0.44094238,60643.0,60642.0,0.021]
[1728572039138,0.43994238,60643.0,60642.0,0.011]
[1728572039621,0.43994238,60643.0,60642.0,0.014]
[1728572040100,0.43894238,60643.0,60642.0,0.003]
[1728572040564,0.73199671,60643.0,60642.0,0.003]
[1728572040798,0.54394238,60643.0,60642.0,0.003]
[1728572041024,0.54394238,60643.0,60628.0,0.24637217]
[1728572041025,0.16668038,60629.0,60628.0,0.24637217]
[1728572041460,0.16668338,60628.0,60627.0,0.001636]
[1728572041679,0.16998081,60628.0,60627.0,0.001636]
[1728572043810,0.17098081,60628.0,60627.0,0.010636]
[1728572044965,0.001,60628.0,60627.0,0.175579]
[1728572045397,0.001,60628.0,60627.0,0.33641664]
[1728572045616,0.002,60628.0,60627.0,0.35041664]
[1728572047021,0.16868338,60628.0,60627.0,0.024636]
[1728572047236,0.17198081,60628.0,60627.0,0.024636]
[1728572047681,0.17198081,60628.0,60627.0,0.03438484]
[1728572047922,0.17198081,60628.0,60627.0,0.024636]
[1728572048186,0.002,60628.0,60627.0,0.024636]
[1728572048403,0.001,60628.0,60627.0,0.39827778]
[1728572048690,0.001,60628.0,60627.0,0.49057778]
[1728572048921,0.002,60628.0,60627.0,0.43846548]
[1728572050020,0.001,60628.0,60627.0,0.42946548]
[1728572050245,0.002,60628.0,60627.0,0.43746548]
[1728572050950,0.002,60628.0,60627.0,0.79702794]
[1728572051213,0.002,60628.0,60627.0,0.82171087]
[1728572051433,0.002,60628.0,60627.0,0.7970386]
[1728572051650,0.001,60628.0,60627.0,0.7890386]
[1728572051874,0.001,60628.0,60627.0,0.5557221]
[1728572052127,0.001,60628.0,60627.0,0.83271666]
[1728572052412,0.24637217,60641.0,60640.0,0.35296133]
[1728572052655,0.24637217,60641.0,60640.0,0.582077]
[1728572052885,0.24637217,60641.0,60640.0,0.67766317]
[1728572053134,0.000818,60643.0,60642.0,0.164902]
[1728572053367,0.000818,60643.0,60642.0,0.354037]
[1728572053593,0.000818,60643.0,60642.0,0.35897372]
[1728572053818,0.000818,60643.0,60642.0,0.37894085]
[1728572055055,0.000818,60643.0,60642.0,0.38094085]
[1728572055295,0.000818,60643.0,60642.0,0.40894085]
[1728572055537,0.000818,60643.0,60642.0,0.40694085]
[1728572055771,0.000818,60643.0,60642.0,0.39494085]
[1728572056016,0.000818,60643.0,60642.0,0.39294085]
[1728572056952,0.000818,60643.0,60642.0,0.37894085]
[1728572057179,0.000818,60643.0,60642.0,0.39294085]
[1728572057429,0.000818,60643.0,60642.0,0.40694085]
[1728572057664,0.000818,60643.0,60642.0,0.39294085]
[1728572057898,0.000818,60643.0,60642.0,0.37894085]
[1728572058126,0.000818,60643.0,60642.0,0.40694085]
[1728572058603,0.000818,60643.0,60642.0,0.39294085]
[1728572059369,0.00055347,60643.0,60642.0,0.39294085]
[1728572060081,0.00055347,60643.0,60642.0,0.40694085]
[1728572060781,0.00055347,60643.0,60642.0,0.39294085]
[1728572061992,0.00055347,60643.0,60642.0,0.37894085]
[1728572062233,0.00055347,60643.0,60642.0,0.39294085]
[1728572062475,0.00055347,60643.0,60642.0,0.40694085]
[1728572062953,0.00055347,60643.0,60642.0,0.36397372]
[1728572063666,0.00055347,60643.0,60642.0,0.03823408]
[1728572063900,0.16545247,60643.0,60642.0,0.03823408]
[1728572064139,0.00055347,60643.0,60642.0,0.02423408]
[1728572064370,0.16545247,60643.0,60642.0,0.03523408]
[1728572064849,0.00055347,60643.0,60642.0,0.03523408]
[1728572065118,0.00055347,60643.0,60642.0,0.01023408]
[1728572065119,0.16545247,60643.0,60642.0,0.01023408]
[1728572065400,0.00229685,60643.0,60642.0,0.03123408]
[1728572065617,0.00229685,60643.0,60642.0,0.185902]
[1728572065852,0.00229685,60643.0,60642.0,0.008]
[1728572066105,0.00229685,60643.0,60642.0,0.02812382]
[1728572066106,0.16719585,60643.0,60642.0,0.02812382]
[1728572066364,0.16719585,60643.0,60642.0,0.018]
[1728572066594,0.16719585,60643.0,60642.0,0.02812382]
[1728572067056,0.00229685,60643.0,60642.0,0.02812382]
[1728572067304,0.23073097,60643.0,60642.0,0.02812382]
[1728572067546,0.17049328,60643.0,60642.0,0.02812382]
[1728572067799,0.17049328,60643.0,60642.0,0.018]
[1728572069535,0.17022907,60643.0,60642.0,0.018]
[1728572070220,0.24712907,60643.0,60642.0,0.018]
[1728572071159,0.24712907,60643.0,60642.0,0.008]
[1728572071401,0.329828,60638.0,60632.0,0.24637217]
[1728572071630,0.329828,60638.0,60633.0,0.17517494]
[1728572071631,0.164919,60636.0,60633.0,0.17517494]
[1728572071854,0.00174338,60636.0,60633.0,0.17517394]
[1728572072081,0.00174338,60636.0,60633.0,0.17517494]
[1728572072333,0.16666638,60634.0,60633.0,0.01024894]
[1728572072820,0.00174338,60633.0,60632.0,0.014]
[1728572073340,0.00174338,60630.0,60628.0,0.001636]
[1728572073573,0.16667838,60630.0,60628.0,0.001636]
[1728572074044,0.16668038,60629.0,60628.0,0.001636]
[1728572074519,0.00174338,60629.0,60628.0,0.001636]
[1728572074749,0.00174338,60629.0,60628.0,0.166576]
[1728572074976,0.00174338,60629.0,60628.0,0.001636]
[1728572075437,0.00174338,60629.0,60628.0,0.166576]
[1728572075684,0.00174338,60629.0,60628.0,0.180576]
[1728572075901,0.00174338,60629.0,60628.0,0.029636]
[1728572077283,0.16668038,60629.0,60628.0,0.029636]
[1728572079599,0.1664161,60629.0,60628.0,0.03986751]
[1728572079824,0.0014791,60629.0,60628.0,0.03986751]
[1728572080032,0.1664161,60629.0,60628.0,0.03986751]
[1728572081160,0.0014791,60629.0,60628.0,0.03986751]
[1728572081397,0.1664161,60629.0,60628.0,0.03986751]
[1728572082797,0.0014791,60629.0,60628.0,0.03986751]
[1728572083030,0.1836,60633.0,60628.0,0.20070515]
[1728572083031,0.1850791,60633.0,60628.0,0.20070515]
[1728572083284,0.24637217,60639.0,60633.0,0.329851]
[1728572083512,0.24637217,60639.0,60628.0,0.03986751]
[1728572083513,0.24637217,60639.0,60638.0,0.164913]
[1728572083745,0.24637217,60639.0,60638.0,0.32575064]
[1728572083992,0.41276127,60639.0,60638.0,0.01015583]
[1728572084237,0.41276127,60639.0,60632.0,0.164928]
[1728572084238,0.164921,60635.0,60632.0,0.164928]
[1728572084477,0.329835,60637.0,60633.0,0.16083764]
[1728572084722,0.3313031,60639.0,60635.0,0.164919]
[1728572084723,0.164914,60638.0,60635.0,0.164919]
[1728572084949,0.0014791,60639.0,60633.0,0.17102378]
[1728572085176,0.18834359,60643.0,60639.0,0.16491]
[1728572085177,0.0014791,60640.0,60639.0,0.16491]
[1728572085397,0.0014791,60640.0,60639.0,0.17504918]
[1728572086329,0.0014791,60640.0,60639.0,0.01013918]
[1728572087311,0.1663861,60640.0,60639.0,0.01013918]
[1728572087549,0.1663861,60640.0,60639.0,0.01913918]
[1728572087779,0.1663861,60640.0,60639.0,0.004]
[1728572087780,0.0014791,60640.0,60639.0,0.004]
[1728572087994,0.0014791,60642.0,60641.0,0.164904]
[1728572088217,0.0014791,60642.0,60641.0,0.01012366]
[1728572088460,0.1663831,60642.0,60639.0,0.2193054]
[1728572088694,0.1663861,60640.0,60639.0,0.009]
[1728572088930,0.1663861,60640.0,60639.0,0.017]
[1728572089384,0.16968353,60640.0,60639.0,0.017]
[1728572089609,0.16941856,60640.0,60639.0,0.017]
[1728572089848,0.16941856,60640.0,60639.0,0.008]
[1728572090315,0.00477653,60640.0,60632.0,0.329856]
[1728572090548,0.1663861,60640.0,60639.0,0.006]
[1728572090775,0.16968353,60640.0,60639.0,0.006]
[1728572091010,0.0014791,60639.0,60633.0,0.16083764]
[1728572091233,0.164919,60636.0,60633.0,0.16083764]
[1728572091448,0.329827,60638.0,60633.0,0.18313278]
[1728572091682,0.164919,60636.0,60633.0,0.34805778]
[1728572091975,0.2511487,60637.0,60628.0,0.001636]
[1728572092223,0.1664161,60629.0,60628.0,0.001636]
[1728572094310,0.1664161,60629.0,60628.0,0.010636]
[1728572095046,0.1664161,60629.0,60628.0,0.02087315]
[1728572095999,0.1664161,60629.0,60628.0,0.02887315]
[1728572097440,0.1664161,60629.0,60628.0,0.02890181]
[1728572097900,0.1664161,60629.0,60628.0,0.01030181]
[1728572098829,0.1664161,60629.0,60628.0,3.6e-05]
[1728572100583,0.1664161,60629.0,60628.0,0.01030225]
[1728572100798,0.1664161,60629.0,60628.0,3.6e-05]
[1728572101743,0.1664161,60629.0,60628.0,0.01030225]
[1728572101980,0.1664161,60629.0,60628.0,3.6e-05]
[1728572104169,0.329865,60631.0,60628.0,0.16087364]
[1728572104170,0.0014791,60631.0,60628.0,0.16087364]
[1728572104401,0.164937,60629.0,60628.0,0.17114353]
[1728572104626,0.0014791,60631.0,60628.0,0.17114353]
[1728572104849,0.1834,60638.0,60628.0,0.17114353]
[1728572104850,0.0014791,60639.0,60630.0,0.18805433]
[1728572105090,0.24637217,60637.0,60633.0,0.494777]
[1728572105345,0.24785127,60637.0,60634.0,0.32575864]
[1728572105603,0.24785127,60637.0,60634.0,0.17107116]
[1728572105604,0.0014791,60637.0,60634.0,0.17107116]
[1728572105854,0.000818,60640.0,60634.0,0.17107116]
[1728572105855,0.24719017,60640.0,60634.0,0.17107116]
[1728572106094,0.1663961,60637.0,60634.0,0.17107116]
[1728572106831,0.0014791,60637.0,60634.0,0.01023352]
[1728572107067,0.00477653,60636.0,60628.0,0.171938]
[1728572107293,0.16493,60632.0,60629.0,0.16083764]
[1728572107521,0.16493,60632.0,60629.0,0.17110147]
[1728572107747,0.0014791,60630.0,60629.0,0.01026383]
[1728572108037,0.1664131,60630.0,60629.0,0.01026383]
[1728572108236,0.16494,60628.0,60627.0,0.001636]
[1728572108732,0.3313541,60629.0,60627.0,0.001636]
[1728572108733,0.0014791,60629.0,60627.0,0.001636]
[1728572108966,0.1664171,60629.0,60627.0,0.001636]
[1728572109207,0.0014791,60629.0,60628.0,0.16494]
[1728572109443,0.0014791,60629.0,60627.0,0.001636]
[1728572109669,0.1664161,60629.0,60628.0,0.01189814]
[1728572109900,0.0014791,60629.0,60628.0,0.01189814]
[1728572110160,0.0014791,60629.0,60628.0,0.17683814]
[1728572110397,0.0014791,60629.0,60628.0,0.01189814]
[1728572110656,0.0014791,60629.0,60628.0,0.17683814]
[1728572110890,0.0014791,60629.0,60628.0,0.01989814]
[1728572111609,0.1664161,60629.0,60628.0,0.01989814]
[1728572111833,0.40739497,60629.0,60628.0,0.01989814]
[1728572112059,0.40409754,60629.0,60628.0,0.01989814]
[1728572112301,0.40409754,60629.0,60628.0,0.009636]
[1728572112302,0.21604321,60629.0,60628.0,0.009636]
[1728572112994,0.1674161,60629.0,60628.0,0.018636]
[1728572118310,0.001,60629.0,60628.0,0.34441364]
[1728572118778,0.001,60629.0,60628.0,0.35467323]
[1728572119504,0.00073475,60629.0,60628.0,0.35467323]
[1728572121858,0.00073475,60629.0,60628.0,0.18973323]
[1728572122104,0.00073475,60629.0,60628.0,0.02889559]
[1728572122105,0.16715085,60629.0,60628.0,0.02889559]
[1728572122350,0.00221385,60629.0,60628.0,0.02889559]
[1728572122591,0.16715085,60629.0,60628.0,0.02889559]
[1728572122844,0.00221385,60629.0,60628.0,0.183576]
[1728572123068,0.00221385,60629.0,60628.0,0.19382347]
[1728572123069,0.00073475,60629.0,60628.0,0.19382347]
[1728572123294,0.00155275,60629.0,60628.0,0.19382347]
[1728572123515,0.00155275,60629.0,60628.0,0.02888347]
[1728572123731,0.00155275,60629.0,60628.0,0.19382347]
[1728572124173,0.00155275,60629.0,60628.0,0.02888347]
[1728572124174,0.16648975,60629.0,60628.0,0.02888347]
[1728572125575,0.00155275,60629.0,60628.0,0.19382347]
[1728572125807,0.00155275,60629.0,60628.0,0.35466111]
[1728572126490,0.24719017,60640.0,60636.0,0.164918]
[1728572126739,0.24719017,60640.0,60636.0,0.32575564]
[1728572126999,0.24719017,60640.0,60636.0,0.33594692]
[1728572127271,0.41209817,60640.0,60636.0,0.33594692]
[1728572127520,0.000818,60640.0,60636.0,0.33594692]
[1728572128434,0.000818,60640.0,60636.0,0.34294692]
[1728572128435,0.001818,60637.0,60636.0,0.34294692]
[1728572128943,0.001818,60637.0,60636.0,0.34794692]
[1728572129637,0.001818,60637.0,60636.0,0.53600125]
[1728572129917,0.001818,60637.0,60636.0,0.93547648]
[1728572130188,0.000818,60637.0,60636.0,1.40969156]
[1728572130410,0.000818,60637.0,60636.0,1.31882373]
[1728572130643,0.000818,60640.0,60639.0,0.91373956]
[1728572130895,0.00028926,60643.0,60642.0,0.1704229]
[1728572131128,0.00028926,60643.0,60642.0,1.08911645]
[1728572131379,0.00028926,60643.0,60642.0,1.09918105]
[1728572132059,0.0014791,60660.0,60650.0,0.16488]
[1728572132293,0.24637217,60663.0,60650.0,0.5631359]
[1728572132581,0.41121817,60663.0,60650.0,0.52378809]
[1728572132819,0.164853,60660.0,60650.0,0.52378809]
[1728572133051,0.164854,60660.0,60650.0,0.52378809]
[1728572133295,0.24637217,60663.0,60650.0,0.52378809]
[1728572133734,0.24637217,60663.0,60650.0,0.55178809]
[1728572133975,0.24637217,60663.0,60650.0,0.53778809]
[1728572134224,0.24637217,60663.0,60650.0,0.34973376]
[1728572134225,0.164855,60660.0,60650.0,0.34973376]
[1728572134486,0.164855,60660.0,60650.0,0.33573376]
[1728572134487,0.3311891,60660.0,60650.0,0.33573376]
[1728572134710,0.329731,60656.0,60650.0,0.18485376]
[1728572134937,0.329731,60656.0,60650.0,0.36373376]
[1728572134938,0.164864,60656.0,60650.0,0.36373376]
[1728572135164,0.16487,60654.0,60650.0,0.36373376]
[1728572135423,0.329732,60656.0,60650.0,0.36373376]
[1728572135691,0.164867,60655.0,60650.0,0.36373376]
[1728572135923,0.3312001,60658.0,60650.0,0.36373376]
[1728572136401,0.164865,60656.0,60650.0,0.36373376]
[1728572136627,0.3312001,60658.0,60650.0,0.34973376]
[1728572136628,0.164868,60655.0,60650.0,0.34973376]
[1728572136852,0.164868,60655.0,60650.0,0.34873376]
[1728572137077,0.0014791,60656.0,60650.0,0.18385376]
[1728572137306,0.164867,60655.0,60650.0,0.34873376]
[1728572137527,0.0014791,60656.0,60650.0,0.33573376]
[1728572137778,0.164867,60655.0,60650.0,0.33573376]
[1728572138002,0.24637217,60654.0,60650.0,0.03301612]
[1728572138257,0.165695,60651.0,60650.0,0.02101612]
[1728572138499,0.165695,60651.0,60650.0,0.011]
[1728572138717,0.165695,60651.0,60650.0,0.02]
[1728572139654,0.16542968,60651.0,60650.0,0.009]
[1728572140102,0.16542968,60651.0,60650.0,0.015]
[1728572140560,0.16542968,60651.0,60650.0,0.006]
[1728572141241,0.329764,60650.0,60644.0,0.164894]
[1728572141504,0.164885,60649.0,60645.0,0.33575784]
[1728572141732,0.329764,60650.0,60645.0,0.17086584]
[1728572142205,0.35442443,60646.0,60645.0,0.0100282]
[1728572142889,0.35442443,60646.0,60638.0,0.164912]
[1728572142890,0.1663801,60643.0,60638.0,0.164912]
[1728572143109,0.0014791,60643.0,60639.0,0.01006462]
[1728572143332,0.3312791,60643.0,60639.0,0.01006462]
[1728572143575,0.3312781,60643.0,60639.0,0.01006462]
[1728572143817,0.0014791,60643.0,60639.0,0.01006462]
[1728572144061,0.1663781,60643.0,60639.0,0.17497262]
[1728572144304,0.329805,60642.0,60639.0,0.01006462]
[1728572144537,0.164904,60642.0,60639.0,0.01006462]
[1728572144781,0.1663781,60643.0,60639.0,0.17497162]
[1728572145000,0.1663781,60643.0,60639.0,0.18197162]
[1728572145240,0.0014791,60643.0,60639.0,0.01706462]
[1728572145487,0.0014791,60643.0,60639.0,0.17497362]
[1728572145488,0.1663781,60643.0,60639.0,0.17497362]
[1728572145713,0.0014791,60645.0,60642.0,0.164901]
[1728572145998,0.0014791,60647.0,60644.0,0.164896]
[1728572146266,0.00055268,60651.0,60650.0,0.16488]
[1728572146524,0.00055268,60651.0,60650.0,0.32571764]
[1728572146770,0.00055268,60651.0,60650.0,0.33573505]
[1728572147022,0.00055268,60651.0,60650.0,0.01001741]
[1728572147260,0.16542968,60651.0,60650.0,0.01001741]
[1728572147483,0.33030968,60651.0,60645.0,0.19746636]
[1728572147711,0.164883,60649.0,60646.0,0.17087928]
[1728572148192,0.164881,60650.0,60646.0,0.33577028]
[1728572149366,0.33030968,60651.0,60646.0,0.17087928]
[1728572149590,0.164883,60649.0,60646.0,0.17087928]
[1728572149855,0.164884,60649.0,60646.0,0.17587928]
[1728572150080,0.00055268,60651.0,60646.0,0.50065928]
[1728572150311,0.00055268,60651.0,60646.0,0.17087928]
[1728572150533,0.00055268,60651.0,60648.0,0.164885]
[1728572150752,0.00055268,60651.0,60648.0,0.32572064]
[1728572151208,0.164881,60650.0,60649.0,0.01002347]
[1728572152163,0.164888,60647.0,60646.0,0.001]
[1728572152402,0.164888,60647.0,60643.0,0.164899]
[1728572152641,0.0014791,60648.0,60646.0,0.01004164]
[1728572152867,0.0014791,60648.0,60647.0,0.164887]
[1728572153089,0.00055268,60651.0,60650.0,0.16488]
[1728572153322,0.00055268,60651.0,60650.0,0.16083764]
[1728572153541,0.00055268,60651.0,60650.0,0.17085505]
[1728572154037,0.16542968,60651.0,60650.0,0.01001741]
[1728572154290,0.17020621,60651.0,60650.0,0.01001741]
[1728572154510,0.25070621,60651.0,60650.0,0.002]
[1728572155668,0.25070621,60651.0,60650.0,0.007]
[1728572155892,0.164888,60647.0,60644.0,0.24637217]
[1728572156115,0.0014791,60649.0,60644.0,0.24637217]
[1728572156339,0.3312491,60649.0,60645.0,0.0100477]
[1728572156566,0.00329743,60648.0,60645.0,0.0100477]
[1728572156791,0.00329743,60648.0,60641.0,0.329807]
[1728572156792,0.164891,60646.0,60641.0,0.164904]
[1728572157107,0.164891,60646.0,60639.0,0.001634]
[1728572157108,0.0014791,60641.0,60639.0,0.001634]
[1728572157336,0.329805,60642.0,60639.0,0.001634]
[1728572157337,0.24508353,60640.0,60639.0,0.001634]
[1728572158281,0.16968353,60640.0,60639.0,0.001634]
[1728572158939,0.16968353,60640.0,60639.0,0.004634]
[1728572159157,0.16968353,60640.0,60639.0,0.007634]
[1728572159637,0.16941809,60640.0,60639.0,0.001634]
[1728572159860,0.16915333,60640.0,60639.0,0.005634]
[1728572160089,0.0014791,60640.0,60639.0,0.009634]
[1728572160321,0.329805,60642.0,60639.0,0.0435816]
[1728572160538,0.164907,60640.0,60639.0,0.0435816]
[1728572161001,0.164907,60640.0,60639.0,0.009634]
[1728572161209,0.164907,60640.0,60639.0,0.005634]
[1728572161441,0.164907,60640.0,60639.0,0.001634]
[1728572161672,0.002,60658.0,60639.0,0.001634]
[1728572161673,0.329766,60649.0,60640.0,0.329812]
[1728572161897,0.08045268,60651.0,60640.0,0.329812]
[1728572161898,0.24637217,60646.0,60645.0,0.164894]
[1728572162150,0.24637217,60646.0,60645.0,0.32573164]
[1728572162381,0.00055268,60651.0,60645.0,0.49062264]
[1728572162602,0.00055268,60651.0,60647.0,0.329773]
[1728572162821,0.00055268,60651.0,60650.0,0.16488]
[1728572163288,0.00055268,60651.0,60647.0,0.16083764]
[1728572163522,0.00055268,60651.0,60648.0,0.16083764]
[1728572163753,0.16488,60650.0,60648.0,0.16083764]
[1728572163979,0.16488,60650.0,60643.0,0.329795]
[1728572163980,0.32976,60650.0,60643.0,0.164897]
[1728572164213,0.32976,60650.0,60644.0,0.16083764]
[1728572164214,0.164891,60646.0,60644.0,0.16083764]
[1728572164444,0.329788,60645.0,60639.0,0.004634]
[1728572164715,0.329801,60643.0,60639.0,0.16547164]
[1728572164942,0.164905,60641.0,60639.0,0.16547164]
[1728572165189,0.24637217,60642.0,60639.0,0.004634]
[1728572165467,0.78374033,60646.0,60639.0,0.004634]
[1728572165468,0.35625876,60640.0,60639.0,0.004634]
[1728572165703,0.35296133,60640.0,60639.0,0.001634]
[1728572166605,0.35296133,60640.0,60639.0,0.002634]
[1728572166828,0.35296133,60640.0,60639.0,0.001634]
[1728572167410,0.35296133,60640.0,60639.0,0.006634]
[1728572167613,0.35296133,60640.0,60639.0,0.004634]
[1728572168661,0.35296133,60640.0,60639.0,0.001634]
[1728572169096,0.69089897,60640.0,60639.0,0.001634]
[1728572169338,0.88239897,60640.0,60639.0,0.001634]
[1728572170247,0.69434464,60640.0,60639.0,0.001634]
[1728572172082,0.69934464,60640.0,60639.0,0.001634]
[1728572173370,0.88739897,60640.0,60639.0,0.001634]
[1728572174934,0.72156133,60640.0,60639.0,0.001634]
[1728572175614,0.72656133,60640.0,60639.0,0.001634]
[1728572175842,0.164907,60640.0,60639.0,0.001634]
[1728572176061,0.000817,60641.0,60639.0,0.001634]
[1728572176293,0.00329743,60640.0,60639.0,0.001634]
[1728572176516,0.165722,60641.0,60639.0,0.001634]
[1728572176726,0.16820443,60640.0,60639.0,0.01181352]
[1728572176957,0.16820443,60640.0,60639.0,0.001634]
[1728572177445,0.16820443,60640.0,60639.0,0.003634]
[1728572177667,0.16820443,60640.0,60639.0,0.002634]
[1728572177668,0.00329743,60640.0,60639.0,0.002634]
[1728572177879,0.16820443,60640.0,60639.0,0.007634]
[1728572178092,0.16820443,60640.0,60639.0,0.01781352]
[1728572178319,0.16820443,60640.0,60639.0,0.006634]
[1728572178781,0.16820443,60640.0,60639.0,0.01679196]
[1728572178990,0.16820443,60640.0,60639.0,0.006634]
[1728572179423,0.29450882,60640.0,60639.0,0.006634]
[1728572179645,0.57400882,60640.0,60639.0,0.006634]
[1728572179846,0.57071139,60640.0,60639.0,0.006634]
[1728572180058,0.444407,60640.0,60639.0,0.010634]
[1728572180753,0.549407,60640.0,60639.0,0.001634]
[1728572181427,0.549407,60640.0,60639.0,0.006634]
[1728572181643,0.544407,60640.0,60639.0,0.006634]
[1728572181856,0.549407,60640.0,60639.0,0.006634]
[1728572182091,0.549407,60640.0,60639.0,0.001634]
[1728572182317,0.71024464,60640.0,60639.0,0.001634]
[1728572185690,0.549407,60640.0,60639.0,0.001634]
[1728572187017,0.164907,60640.0,60639.0,0.001634]
[1728572187231,0.16820443,60640.0,60639.0,0.001634]
[1728572188763,0.330628,60641.0,60639.0,0.001634]
[1728572188764,0.000817,60641.0,60639.0,0.001634]
[1728572188986,0.165723,60641.0,60640.0,0.01016164]
[1728572189433,0.000817,60641.0,60640.0,0.01016164]
[1728572189676,0.16545564,60641.0,60640.0,0.01016164]
[1728572190736,0.00055164,60641.0,60640.0,0.01016164]
[1728572190989,0.00055164,60641.0,60640.0,0.0613161]
[1728572191200,0.00055164,60641.0,60640.0,0.2262231]
[1728572191409,0.00055164,60641.0,60640.0,0.2322231]
[1728572191852,0.00055164,60641.0,60640.0,0.2402231]
[1728572192718,0.00055164,60641.0,60640.0,0.2342231]
[1728572192954,0.00055164,60641.0,60640.0,0.18306864]
[1728572193158,0.00055164,60641.0,60640.0,0.19006864]
[1728572194752,0.00055164,60641.0,60640.0,0.60057645]
[1728572194997,0.00055164,60641.0,60640.0,0.92056061]
[1728572195204,0.00055268,60651.0,60650.0,0.35293433]
[1728572195440,0.00055268,60651.0,60650.0,0.51877197]
[1728572195652,0.00055268,60651.0,60650.0,0.52884743]
[1728572195920,0.00055268,60651.0,60650.0,0.65384743]
[1728572196152,0.00055268,60651.0,60650.0,1.1865044]
[1728572196385,0.00055268,60651.0,60650.0,1.2111733]
[1728572196626,0.00055268,60651.0,60650.0,1.18644345]
[1728572197069,0.00055268,60651.0,60650.0,1.20268259]
[1728572197072,0.00055268,60651.0,60650.0,0.94676259]
[1728572197322,0.00055268,60651.0,60650.0,1.02070834]
[1728572197575,0.00055268,60651.0,60650.0,0.96076259]
[1728572197845,0.00055268,60651.0,60650.0,1.03470834]
[1728572198082,0.00055268,60651.0,60650.0,1.24134166]
[1728572198302,0.00055268,60651.0,60650.0,1.15235939]
[1728572198557,19.0,60664.0,60663.0,0.105]
[1728572198801,19.0,60664.0,60663.0,0.53578264]
[1728572199038,19.0,60664.0,60663.0,0.71754535]
[1728572199263,18.91175484,60664.0,60663.0,0.81601993]
[1728572199509,18.91175484,60664.0,60663.0,0.58497341]
[1728572199739,18.71175484,60664.0,60663.0,0.72383697]
[1728572199999,17.71185484,60664.0,60663.0,0.72383697]
[1728572200239,17.71185484,60664.0,60663.0,0.73783697]
[1728572200728,17.71185484,60664.0,60663.0,0.75183697]
[1728572200956,17.71185484,60664.0,60663.0,0.76242653]
[1728572201414,17.71185484,60664.0,60663.0,0.77642653]
[1728572202123,17.71185484,60664.0,60663.0,0.76242653]
[1728572202598,17.71185484,60664.0,60663.0,0.77442653]
[1728572202838,17.71185484,60664.0,60663.0,0.74642653]
[1728572203567,17.71185484,60664.0,60663.0,0.77442653]
[1728572203569,17.71185484,60664.0,60663.0,0.75142653]
[1728572203792,17.71185484,60664.0,60663.0,0.72342653]
[1728572204014,17.71185484,60664.0,60663.0,0.73742653]
[1728572204492,17.71185484,60664.0,60663.0,0.3502722]